bitfinex-derivatives/quotes_BNBF0:USTF0_20250309
["timestamp","ask_amount","ask_price","bid_price","bid_amount"]
[1741508678222,0.679,585.44,584.89,0.902]
[1741508678421,0.29744607,585.43,584.89,0.902]
[1741508680726,0.29744607,585.43,584.9,0.852]
[1741508681227,0.679,585.44,584.9,1.804]
[1741508681627,0.2974448,585.42,584.9,1.804]
[1741508683129,0.2974448,585.42,584.9,2.646]
[1741508684329,0.679,585.44,584.9,2.646]
[1741508684530,0.2974448,585.41,584.9,2.646]
[1741508687332,0.679,585.44,584.9,2.646]
[1741508687633,0.2974448,585.4,584.9,2.646]
[1741508693135,0.679,585.44,584.9,2.646]
[1741508693537,0.29750328,585.39,584.9,2.646]
[1741508696243,0.931,585.45,584.9,2.646]
[1741508696438,0.29750201,585.38,584.9,2.646]
[1741508696940,0.931,585.45,584.9,2.646]
[1741508697643,0.29750201,585.44,584.9,2.646]
[1741508698059,1.11650201,585.44,584.9,2.646]
[1741508698943,0.31420454,585.43,584.9,2.646]
[1741508699443,0.29750328,585.42,584.9,2.646]
[1741508699743,0.31420454,585.41,584.9,2.646]
[1741508702340,0.31420454,585.43,584.9,2.646]
[1741508702644,0.29750328,585.4,584.9,2.646]
[1741508702846,0.31420454,585.39,584.9,2.646]
[1741508705049,0.672,585.38,584.9,2.646]
[1741508705248,0.31420454,585.37,584.9,2.646]
[1741508705448,0.61171545,585.37,584.9,2.646]
[1741508705744,0.31420454,585.36,584.9,0.952]
[1741508707354,0.31419822,585.35,584.9,0.952]
[1741508707554,0.31419822,585.36,584.9,0.952]
[1741508707748,0.31419822,585.35,584.9,0.952]
[1741508708052,0.31419822,585.34,584.9,0.952]
[1741508708251,0.31419822,585.36,584.9,0.952]
[1741508708553,0.29751218,585.33,584.9,0.952]
[1741508708846,0.31419822,585.32,584.9,0.952]
[1741508709048,0.29751218,585.33,584.9,0.952]
[1741508711251,1.333,585.38,584.9,0.952]
[1741508711453,0.31421054,585.37,584.9,0.952]
[1741508711655,0.29751091,585.32,584.9,0.952]
[1741508714149,1.333,585.38,584.9,0.952]
[1741508714451,0.31421514,585.37,584.9,0.952]
[1741508714654,0.29751345,585.31,584.9,0.952]
[1741508714851,1.333,585.38,584.9,0.952]
[1741508715256,0.31421653,585.37,584.9,0.952]
[1741508715656,0.61174016,585.37,584.9,0.952]
[1741508715958,0.31421653,585.36,584.9,0.952]
[1741508717465,0.2975249,585.35,584.9,0.952]
[1741508718462,0.3142761,585.34,584.9,0.952]
[1741508720556,0.3142761,585.33,584.9,0.952]
[1741508720858,0.3142761,585.32,584.9,0.952]
[1741508721060,0.3142761,585.37,584.9,0.952]
[1741508721360,0.29755161,585.31,584.9,0.952]
[1741508721563,0.3143146,585.3,584.9,0.952]
[1741508723459,0.3143146,585.37,584.9,0.952]
[1741508723661,0.3143146,585.29,584.9,0.952]
[1741508723859,0.3143146,585.28,584.9,0.952]
[1741508724057,0.3143146,585.37,584.9,0.952]
[1741508724458,0.29752617,585.27,584.9,0.952]
[1741508724661,0.3143146,585.26,584.9,0.952]
[1741508724857,0.3143146,585.37,584.9,0.952]
[1741508725459,0.31424898,585.36,584.9,0.952]
[1741508725663,0.29752617,585.36,584.9,0.952]
[1741508725858,0.31424898,585.35,584.9,0.952]
[1741508729364,0.31424898,585.37,584.9,0.952]
[1741508729563,0.29749565,585.34,584.9,0.952]
[1741508729761,0.31424898,585.33,584.9,0.952]
[1741508731670,0.3142154,585.32,584.9,0.952]
[1741508731868,0.3142154,585.33,584.9,0.952]
[1741508732060,0.3142154,585.31,584.9,0.952]
[1741508732265,0.3142154,585.3,584.9,0.952]
[1741508732462,0.29749819,585.3,584.9,0.952]
[1741508733664,0.31422129,585.29,584.9,0.952]
[1741508735374,0.31422129,585.37,584.9,0.952]
[1741508735673,0.29749311,585.28,584.9,0.952]
[1741508735870,2.167,585.38,584.9,0.952]
[1741508736075,0.31419836,585.37,584.9,0.952]
[1741508736971,0.29749311,585.36,584.9,0.952]
[1741508737175,0.31419691,585.35,584.9,0.952]
[1741508738474,0.31419691,585.37,584.9,0.952]
[1741508738671,0.29750074,585.34,584.9,0.952]
[1741508738876,0.31419691,585.33,584.9,0.952]
[1741508739275,0.31419691,585.33,584.89,0.837]
[1741508739875,0.29750074,585.34,584.89,0.837]
[1741508740171,0.31420807,585.33,584.89,0.837]
[1741508741479,0.61171262,585.32,584.89,0.837]
[1741508741673,0.31420807,585.31,584.89,0.837]
[1741508744476,0.2975071,585.3,584.89,0.837]
[1741508744881,0.31420807,585.29,584.89,0.837]
[1741508747078,0.2975071,585.3,584.89,0.837]
[1741508747283,0.31419844,585.29,584.89,0.837]
[1741508747483,0.31419844,585.28,584.89,0.837]
[1741508747679,0.29750074,585.29,584.89,0.837]
[1741508747879,0.31419844,585.28,584.89,0.837]
[1741508750388,0.31419844,585.36,584.89,0.837]
[1741508750688,0.29751091,585.27,584.89,0.837]
[1741508750880,1.3,585.37,584.89,0.837]
[1741508750881,0.31420491,585.26,584.89,0.837]
[1741508751082,0.31420491,585.36,584.89,0.837]
[1741508751285,0.31420491,585.25,584.89,0.837]
[1741508751488,0.31420491,585.24,584.89,0.837]
[1741508751790,0.29751091,585.35,584.89,0.837]
[1741508752087,0.31422168,585.34,584.89,0.837]
[1741508753389,0.31422168,585.36,584.89,0.837]
[1741508754391,0.29751091,585.35,584.89,0.837]
[1741508754592,0.31422168,585.34,584.89,0.837]
[1741508756095,0.29751091,585.35,584.89,0.837]
[1741508756291,0.31423549,585.34,584.89,0.837]
[1741508756486,0.29752617,585.33,584.89,0.837]
[1741508756686,0.31423549,585.32,584.89,0.837]
[1741508759494,0.31423549,585.36,584.89,0.837]
[1741508759689,0.29752872,585.31,584.89,0.837]
[1741508759895,0.31423284,585.3,584.89,0.837]
[1741508760694,0.31423284,585.3,584.84,0.915]
[1741508761199,0.29752872,585.31,584.84,0.915]
[1741508761400,0.31424834,585.3,584.84,0.915]
[1741508762596,0.61178596,585.29,584.84,0.915]
[1741508762796,0.31424834,585.28,584.84,0.915]
[1741508765204,0.29753762,585.29,584.84,0.915]
[1741508768209,1.481,585.32,584.84,0.915]
[1741508768710,0.29751345,585.28,584.84,0.915]
[1741508771211,2.388,585.32,584.84,0.915]
[1741508771410,0.31420599,585.31,584.84,0.915]
[1741508771618,0.29751345,585.27,584.84,0.915]
[1741508774216,2.388,585.32,584.84,0.915]
[1741508774616,0.29751345,585.26,584.84,0.915]
[1741508776831,0.31421601,585.25,584.84,0.915]
[1741508777017,0.29751345,585.26,584.84,0.915]
[1741508777317,0.31421997,585.25,584.84,0.915]
[1741508777512,0.2975249,585.25,584.84,0.915]
[1741508778319,0.31423093,585.24,584.84,0.915]
[1741508780422,0.31423093,585.31,584.84,0.915]
[1741508780621,0.29754525,585.23,584.83,1.766]
[1741508780824,2.388,585.32,584.83,1.766]
[1741508781023,0.31423688,585.31,584.83,1.766]
[1741508781217,2.388,585.32,584.83,1.766]
[1741508781417,0.31424039,585.31,584.83,1.766]
[1741508781622,0.29753762,585.3,584.83,1.766]
[1741508781821,0.31424039,585.29,584.83,1.766]
[1741508783430,0.31424039,585.28,584.83,1.766]
[1741508783627,0.29754016,585.28,584.83,1.766]
[1741508783827,0.31424039,585.27,584.83,1.766]
[1741508784425,0.29754016,585.28,584.83,1.766]
[1741508785426,0.29754016,585.28,584.83,0.94]
[1741508786325,0.592,585.31,584.83,0.94]
[1741508786529,0.29752363,585.27,584.83,0.94]
[1741508789233,2.082,585.31,584.83,0.94]
[1741508790426,0.29751854,585.3,584.83,0.94]
[1741508792231,2.082,585.31,584.83,0.94]
[1741508792429,0.31421096,585.3,584.83,0.94]
[1741508792630,0.29751854,585.29,584.83,0.94]
[1741508794236,0.31421821,585.28,584.83,0.94]
[1741508795431,0.31421821,585.3,584.83,0.94]
[1741508795635,0.29753635,585.27,584.83,0.94]
[1741508796135,0.31423696,585.26,584.83,0.94]
[1741508797732,0.31423696,585.26,584.8,0.876]
[1741508798144,0.29753635,585.27,584.8,0.876]
[1741508801334,0.592,585.31,584.8,0.876]
[1741508801533,0.29752744,585.26,584.8,0.876]
[1741508803742,0.29752744,585.26,584.79,1.648]
[1741508804343,1.517,585.28,584.79,1.648]
[1741508804643,0.29753253,585.25,584.79,1.648]
[1741508807241,1.517,585.28,584.79,1.648]
[1741508807445,0.29753253,585.24,584.79,1.648]
[1741508810241,1.517,585.28,584.79,1.648]
[1741508810646,0.2975249,585.23,584.79,1.648]
[1741508813348,1.517,585.28,584.79,1.648]
[1741508813749,0.2975249,585.22,584.79,1.648]
[1741508816356,0.831,585.27,584.79,1.648]
[1741508816556,0.29752617,585.21,584.79,1.648]
[1741508816956,0.29752617,585.21,584.79,0.845]
[1741508819457,0.831,585.27,584.79,0.845]
[1741508819658,0.29752617,585.2,584.79,0.845]
[1741508819858,1.503,585.27,584.79,0.845]
[1741508820057,1.503,585.27,584.77,1.669]
[1741508820259,1.503,585.27,584.79,0.788]
[1741508820454,0.612,585.26,584.79,0.788]
[1741508820653,0.90952872,585.26,584.79,0.788]
[1741508822254,0.612,585.26,584.79,0.788]
[1741508822656,0.29752744,585.25,584.79,0.788]
[1741508825268,0.612,585.26,584.79,0.788]
[1741508825767,0.29752744,585.24,584.79,0.788]
[1741508828469,0.612,585.26,584.79,0.788]
[1741508841375,0.612,585.26,584.78,1.923]
[1741508844480,0.612,585.26,584.78,2.855]
[1741508844873,2.032,585.26,584.78,2.855]
[1741508850688,0.29752363,585.25,584.78,2.855]
[1741508851092,0.29752363,585.25,584.78,0.932]
[1741508852393,2.032,585.26,584.78,0.932]
[1741508852695,0.29752363,585.24,584.78,0.932]
[1741508855193,2.032,585.26,584.78,0.932]
[1741508855394,0.29752363,585.23,584.78,0.932]
[1741508858398,2.032,585.26,584.78,0.932]
[1741508858699,0.29752363,585.22,584.78,0.932]
[1741508860599,0.29752363,585.22,584.76,1.816]
[1741508861302,0.748,585.26,584.76,1.816]
[1741508861696,1.04550582,585.26,584.76,1.816]
[1741508861896,0.29750582,585.26,584.76,1.816]
[1741508863899,0.29750582,585.26,584.77,0.826]
[1741508864099,1.581,585.25,584.77,0.826]
[1741508865100,2.354,585.25,584.77,0.826]
[1741508881417,2.354,585.25,584.77,1.484]
[1741508897120,2.354,585.25,584.77,2.14]
[1741508900423,2.354,585.25,584.77,2.858]
[1741508909537,0.29751091,585.24,584.77,2.858]
[1741508909837,0.29751091,585.24,584.77,1.374]
[1741508912239,2.354,585.25,584.77,1.374]
[1741508912632,0.29751345,585.23,584.77,1.374]
[1741508915338,2.354,585.25,584.77,1.374]
[1741508915735,0.29751345,585.23,584.77,1.374]
[1741508918343,2.354,585.25,584.77,1.374]
[1741508918745,0.29752872,585.22,584.77,1.374]
[1741508921245,2.354,585.25,584.77,1.374]
[1741508921640,0.29752872,585.24,584.77,1.374]
[1741508924347,2.354,585.25,584.77,1.374]
[1741508925747,0.29752872,585.24,584.77,1.374]
[1741508927443,2.354,585.25,584.77,1.374]
[1741508927656,0.29752872,585.23,584.77,1.374]
[1741508930353,2.354,585.25,584.77,1.374]
[1741508930658,0.29752872,585.22,584.77,1.374]
[1741508933154,0.29752872,585.22,584.77,0.718]
[1741508933354,2.354,585.25,584.77,0.718]
[1741508933553,0.29752872,585.21,584.77,0.718]
[1741508935653,0.29752872,585.21,584.73,1.815]
[1741508936458,1.2775675,585.47,584.73,2.549]
[1741508936659,0.29750455,585.2,584.73,2.549]
[1741508936960,1.2775675,585.47,584.73,2.549]
[1741508937157,0.31416105,585.46,584.73,2.549]
[1741508937760,0.29747785,585.45,584.73,2.549]
[1741508937961,0.31416105,585.44,584.73,2.549]
[1741508938660,0.31416105,585.44,584.74,1.14]
[1741508939054,2.91716105,585.44,584.74,1.14]
[1741508939259,0.31416105,585.43,584.74,1.14]
[1741508939459,2.603,585.44,584.74,1.14]
[1741508939460,0.31415561,585.42,584.74,1.14]
[1741508939664,0.61164617,585.43,584.74,1.14]
[1741508939855,0.31415561,585.42,584.74,1.14]
[1741508942666,0.31415561,585.43,584.74,1.14]
[1741508942866,0.31415561,585.42,584.74,1.14]
[1741508943062,0.31415561,585.43,584.74,1.14]
[1741508943761,0.29749056,585.42,584.74,1.14]
[1741508943967,0.31415561,585.41,584.74,1.14]
[1741508945473,1.59172311,585.43,584.74,1.14]
[1741508945689,0.29749311,585.4,584.74,1.14]
[1741508945968,0.31415561,585.39,584.74,1.14]
[1741508948564,0.29749565,585.38,584.74,1.14]
[1741508948763,0.31415561,585.37,584.74,1.14]
[1741508949264,0.31415561,585.37,584.75,1.031]
[1741508951471,1.2775675,585.43,584.75,1.031]
[1741508951671,0.29749692,585.36,584.75,1.031]
[1741508951872,1.2775675,585.43,584.75,1.031]
[1741508952667,0.29749056,585.42,584.75,1.031]
[1741508954367,1.536,585.44,584.75,1.031]
[1741508954772,0.29748929,585.41,584.75,1.031]
[1741508955372,0.791,585.4,584.75,1.031]
[1741508957879,0.29751473,585.39,584.75,1.031]
[1741508958076,0.29751473,585.39,584.76,1.039]
[1741508960377,0.791,585.4,584.76,1.039]
[1741508961372,0.31416889,585.39,584.76,1.039]
[1741508961576,0.61166836,585.39,584.77,1.016]
[1741508961772,0.31416889,585.38,584.77,1.016]
[1741508963077,0.31416102,585.37,584.77,1.016]
[1741508963371,0.791,585.4,584.77,1.016]
[1741508963777,0.29750074,585.36,584.77,1.016]
[1741508965674,0.29750074,585.36,584.77,2.198]
[1741508966375,0.791,585.4,584.77,2.198]
[1741508966578,0.29749692,585.35,584.77,2.198]
[1741508967283,0.672,585.34,584.77,2.198]
[1741508969779,0.29748675,585.33,584.77,2.198]
[1741508970281,1.35348675,585.33,584.77,2.198]
[1741508972380,1.056,585.33,584.77,3.284]
[1741508973576,0.29748802,585.32,584.77,3.284]
[1741508975576,1.056,585.33,584.77,3.284]
[1741508976684,0.29752109,585.32,584.77,3.284]
[1741508978383,1.056,585.33,584.77,3.284]
[1741508979586,0.29752109,585.32,584.77,3.284]
[1741508981386,1.904,585.33,584.77,3.284]
[1741508982588,0.29752109,585.32,584.77,3.284]
[1741508984392,1.904,585.33,584.77,3.284]
[1741508985590,0.29752109,585.32,584.77,3.284]
[1741508987388,1.904,585.33,584.77,3.284]
[1741508988593,0.29752109,585.32,584.77,3.284]
[1741508988995,0.29752109,585.32,584.77,4.173]
[1741508990288,0.848,585.33,584.77,4.173]
[1741508991796,0.29752109,585.32,584.77,4.173]
[1741508992197,1.33952109,585.32,584.77,4.173]
[1741508993294,1.042,585.32,584.77,4.173]
[1741508994595,0.29752236,585.31,584.77,4.173]
[1741508995599,0.3141967,585.3,584.77,4.173]
[1741508999700,0.29752363,585.29,584.77,4.173]
[1741509001901,1.714,585.32,584.77,4.173]
[1741509002105,0.29752236,585.28,584.77,4.173]
[1741509002402,1.714,585.32,584.77,4.173]
[1741509002804,2.516,585.32,584.77,4.173]
[1741509003609,0.29752236,585.31,584.77,4.173]
[1741509005502,2.516,585.32,584.77,4.173]
[1741509005700,0.29752236,585.3,584.77,4.173]
[1741509008309,2.516,585.32,584.77,4.173]
[1741509009712,0.29752236,585.31,584.77,4.173]
[1741509011510,2.516,585.32,584.77,4.173]
[1741509011705,0.29752236,585.3,584.77,4.173]
[1741509014414,2.516,585.32,584.77,4.173]
[1741509014711,0.29752236,585.29,584.77,4.173]
[1741509017308,1.844,585.32,584.77,4.173]
[1741509017715,0.29752236,585.28,584.77,4.173]
[1741509019606,0.672,585.27,584.77,4.173]
[1741509020612,0.29752872,585.26,584.77,4.173]
[1741509023413,1.1,585.25,584.77,4.173]
[1741509023609,1.39752872,585.25,584.77,4.173]
[1741509027112,2.11352872,585.25,584.77,4.173]
[1741509029418,1.816,585.25,584.77,4.173]
[1741509029917,0.29753126,585.24,584.77,4.173]
[1741509030317,0.29753126,585.24,584.03,1.2710297]
[1741509030515,0.29753126,585.24,584.05,0.34243643]
[1741509030711,0.29753126,585.24,584.06,0.28598606]
[1741509031511,0.29753126,585.24,584.11,1.2710297]
[1741509031915,0.29753126,585.24,584.12,0.28595897]
[1741509032316,1.816,585.25,584.12,0.28595897]
[1741509033620,1.816,585.25,584.13,4.046]
[1741509033819,1.816,585.25,584.14,0.28595897]
[1741509038222,1.816,585.25,584.15,0.28595897]
[1741509038423,1.816,585.25,584.14,0.28595897]
[1741509038622,1.816,585.25,584.15,0.28595897]
[1741509038821,0.29759996,585.24,584.16,0.28595897]
[1741509039021,0.29759996,585.24,584.13,4.046]
[1741509039022,0.29759996,585.24,584.17,0.28595897]
[1741509039222,0.29759996,585.24,584.14,0.28595897]
[1741509039517,0.29759996,585.24,584.15,0.28595897]
[1741509039723,0.29759996,585.24,584.19,1.2710297]
[1741509039921,0.29759996,585.24,584.2,0.28595897]
[1741509041121,0.29759996,585.24,584.21,0.28595897]
[1741509041323,0.29759996,585.24,584.2,0.28595897]
[1741509041522,0.29759996,585.24,584.22,1.2710297]
[1741509041723,0.29759996,585.24,584.23,0.28595897]
[1741509042823,0.672,585.23,584.23,0.28595897]
[1741509044819,0.29759105,585.22,584.23,0.28595897]
[1741509045423,0.29759105,585.22,584.22,0.28595897]
[1741509045622,0.29759105,585.22,584.23,0.28595897]
[1741509045820,0.29759105,585.22,584.22,0.28595897]
[1741509046628,0.29759105,585.22,584.23,0.28596892]
[1741509046928,0.29759105,585.22,584.24,0.28596892]
[1741509047128,0.29759105,585.22,584.22,0.28596892]
[1741509047323,0.672,585.23,584.22,0.28596892]
[1741509047724,0.29759232,585.21,584.22,0.28596892]
[1741509048733,0.29759232,585.21,584.22,1.55699862]
[1741509048932,0.29759232,585.21,584.23,0.28596892]
[1741509051134,0.29759232,585.21,584.31,1.2710297]
[1741509051335,0.29759232,585.21,584.32,0.28596892]
[1741509051728,0.29759232,585.21,584.33,1.138]
[1741509051932,0.29759232,585.21,584.34,0.28596892]
[1741509052737,0.896,585.2,584.35,0.893]
[1741509053838,0.29757833,585.19,584.35,0.893]
[1741509054239,1.29757833,585.19,584.35,0.893]
[1741509056437,1.0,585.19,584.35,0.893]
[1741509056837,0.2975796,585.18,584.35,0.893]
[1741509057134,0.2975796,585.18,584.36,0.34225477]
[1741509059341,1.0,585.19,584.36,0.34225477]
[1741509059837,0.2975796,585.18,584.36,0.34225477]
[1741509062342,1.0,585.19,584.36,0.34225477]
[1741509062644,0.2975796,585.18,584.37,0.28596593]
[1741509062844,0.2975796,585.18,584.38,0.34224306]
[1741509063040,0.2975796,585.18,584.39,0.28596593]
[1741509063238,0.2975796,585.18,584.4,0.34223134]
[1741509063445,0.2975796,585.18,584.41,0.28596593]
[1741509063644,0.2975796,585.18,584.42,0.34221963]
[1741509063844,0.2975796,585.18,584.43,0.28596593]
[1741509064043,0.2975796,585.18,584.44,0.34220792]
[1741509065345,1.0,585.19,584.44,0.34220792]
[1741509065747,0.29758978,585.17,584.44,0.34220792]
[1741509066746,0.29758978,585.17,584.45,0.787]
[1741509068550,1.0,585.19,584.45,0.787]
[1741509068749,0.29757706,585.16,584.45,0.787]
[1741509071052,0.29757706,585.16,584.46,1.205]
[1741509074057,0.672,585.15,584.46,1.205]
[1741509074561,0.672,585.15,584.47,0.28599051]
[1741509074755,0.29758087,585.14,584.47,0.28599051]
[1741509077363,0.672,585.15,584.47,0.28599051]
[1741509077562,1.001,585.13,584.47,0.28599051]
[1741509079061,1.001,585.13,584.48,0.2859989]
[1741509079274,1.001,585.13,584.47,0.2859989]
[1741509079464,1.001,585.13,584.48,0.2859989]
[1741509079665,1.001,585.13,584.47,0.2859989]
[1741509079867,1.001,585.13,584.49,1.09]
[1741509080169,1.001,585.13,584.5,0.2859989]
[1741509080765,1.001,585.13,584.49,1.09]
[1741509080766,0.788,585.12,584.49,1.09]
[1741509080964,0.788,585.12,584.5,0.28599916]
[1741509082073,0.788,585.12,584.51,0.782]
[1741509082274,0.788,585.12,584.52,0.28599916]
[1741509086179,0.788,585.12,584.51,0.782]
[1741509086478,0.788,585.12,584.52,0.285999]
[1741509093177,0.788,585.12,584.53,0.2859748]
[1741509093374,0.788,585.12,584.52,0.2859748]
[1741509093672,0.788,585.12,584.51,0.782]
[1741509093879,0.788,585.12,584.52,0.28597686]
[1741509094980,1.001,585.13,584.52,0.28597686]
[1741509096282,1.001,585.13,584.52,1.46197686]
[1741509096482,1.001,585.13,584.52,1.176]
[1741509097280,1.001,585.13,584.53,0.28597203]
[1741509098078,0.747,585.12,584.53,0.28597203]
[1741509099082,0.747,585.12,584.53,1.38497203]
[1741509099285,0.747,585.12,584.54,0.28597516]
[1741509099484,0.747,585.12,584.53,1.099]
[1741509101085,0.747,585.12,584.54,0.28596612]
[1741509101580,0.672,585.11,584.54,0.28596612]
[1741509105690,1.064,585.1,584.54,0.28596612]
[1741509107882,1.064,585.1,584.54,1.04796612]
[1741509108186,1.064,585.1,584.55,0.28589302]
[1741509109983,1.064,585.1,584.54,0.762]
[1741509110190,1.064,585.1,584.55,0.28593632]
[1741509111384,1.064,585.1,584.55,1.29593632]
[1741509111584,1.064,585.1,584.56,0.28593632]
[1741509111791,1.064,585.1,584.55,1.01]
[1741509112093,1.064,585.1,584.56,0.28599354]
[1741509113487,1.064,585.1,584.55,1.01]
[1741509113691,1.064,585.1,584.56,0.28599182]
[1741509114088,1.064,585.1,584.56,1.44899182]
[1741509114285,1.064,585.1,584.57,0.28599182]
[1741509115594,1.064,585.1,584.58,0.28596613]
[1741509115793,1.064,585.1,584.57,0.28596613]
[1741509115987,1.064,585.1,584.58,0.28596613]
[1741509116189,1.064,585.1,584.59,0.28596613]
[1741509116392,1.064,585.1,584.57,0.28596613]
[1741509116593,1.064,585.1,584.58,0.28596613]
[1741509116993,1.064,585.1,584.59,0.28596613]
[1741509117193,1.064,585.1,584.57,0.28596613]
[1741509117391,1.064,585.1,584.56,1.163]
[1741509117592,1.064,585.1,584.57,0.28597259]
[1741509118092,1.064,585.1,584.56,1.163]
[1741509120693,0.672,585.09,584.56,1.163]
[1741509121299,0.73,585.08,584.56,1.163]
[1741509121696,0.73,585.08,584.57,0.28597269]
[1741509127704,0.73,585.08,584.58,0.28596706]
[1741509127903,0.73,585.08,584.57,0.28596706]
[1741509128701,0.73,585.08,584.56,1.163]
[1741509132809,0.73,585.08,584.56,2.328]
[1741509133198,0.73,585.08,584.56,3.362]
[1741509136799,1.402,585.08,584.56,3.362]
[1741509137001,2.255,585.08,584.56,3.362]
[1741509137204,2.255,585.08,584.57,0.28597579]
[1741509138810,2.255,585.08,584.58,0.28593292]
[1741509139007,2.255,585.08,584.57,0.28593292]
[1741509139305,2.255,585.08,584.58,0.28593292]
[1741509139508,2.255,585.08,584.59,0.28593292]
[1741509139809,2.255,585.08,584.6,0.28593292]
[1741509140004,2.255,585.08,584.61,0.28593292]
[1741509140209,1.525,585.08,584.57,0.28593292]
[1741509140411,1.525,585.08,584.58,0.28593292]
[1741509140611,1.525,585.08,584.56,2.199]
[1741509140804,1.525,585.08,584.59,0.87]
[1741509143518,2.539,585.08,584.59,0.87]
[1741509147218,2.539,585.08,584.6,0.893]
[1741509149020,2.539,585.08,584.61,0.28594391]
[1741509149217,2.539,585.08,584.6,1.64]
[1741509169033,2.539,585.08,584.6,2.467]
[1741509176433,2.539,585.08,584.6,3.249]
[1741509181836,2.539,585.08,584.61,0.28596385]
[1741509182340,0.29755416,585.21,584.62,0.28596216]
[1741509182541,0.29755416,585.21,584.61,0.28596216]
[1741509182736,0.29755416,585.21,584.62,0.28596216]
[1741509182940,0.29755416,585.21,584.61,0.28596216]
[1741509183137,0.29755416,585.21,584.63,0.28596216]
[1741509183341,0.29755416,585.21,584.6,2.502]
[1741509185442,2.578,585.2,584.6,2.502]
[1741509185843,2.87551091,585.2,584.6,2.502]
[1741509187047,2.87551091,585.2,584.61,1.035]
[1741509188443,2.578,585.2,584.61,1.035]
[1741509188949,0.29755543,585.19,584.61,1.035]
[1741509191549,2.578,585.2,584.61,1.035]
[1741509191848,0.29755288,585.18,584.61,1.035]
[1741509194551,2.578,585.2,584.61,1.035]
[1741509195552,2.578,585.2,584.62,1.178]
[1741509195753,0.29755543,585.19,584.62,1.178]
[1741509197452,2.578,585.2,584.62,1.178]
[1741509197648,0.29755416,585.18,584.62,1.178]
[1741509200551,2.578,585.2,584.62,1.178]
[1741509200850,0.29755416,585.17,584.62,1.178]
[1741509202358,0.29755416,585.17,584.63,0.776]
[1741509203458,1.413,585.2,584.63,0.776]
[1741509203858,0.29758851,585.16,584.63,0.776]
[1741509204560,0.938,585.15,584.63,0.776]
[1741509206161,0.938,585.15,584.64,1.116]
[1741509212861,0.29758087,585.14,584.64,1.116]
[1741509214560,0.672,585.13,584.64,1.116]
[1741509215962,0.29758342,585.12,584.64,1.116]
[1741509218468,0.672,585.13,584.64,1.116]
[1741509218664,0.29758342,585.11,584.64,1.116]
[1741509218864,0.29758342,585.11,584.62,1.178]
[1741509221470,1.125,585.12,584.63,0.914]
[1741509221871,0.29757451,585.11,584.63,0.914]
[1741509222071,0.29757451,585.11,584.64,1.122]
[1741509224470,1.125,585.12,584.64,1.122]
[1741509224767,0.29757069,585.11,584.64,1.122]
[1741509227474,1.125,585.12,584.64,1.122]
[1741509227673,1.42256688,585.12,584.64,1.122]
[1741509230477,1.125,585.12,584.64,1.122]
[1741509230870,2.272,585.12,584.64,1.122]
[1741509231777,2.56956688,585.12,584.64,1.122]
[1741509235877,3.24156688,585.12,584.64,1.122]
[1741509236483,2.944,585.12,584.64,1.122]
[1741509236883,3.24156688,585.12,584.64,1.122]
[1741509239579,2.944,585.12,584.64,1.122]